fUST/lending_fUST_20250820
["ID","MTS","AMOUNT","RATE_DAILY","PERIOD"]
[380321840,1755673846615,-151.0,0.000259,7]
[380321841,1755673846624,-151.0,0.000259,7]
[380321842,1755673846633,-232.99864,0.000259,7]
[380321843,1755673846643,-1000.0,0.000259,5]
[380321844,1755673846652,-1000.0,0.000259,5]
[380321845,1755673846661,-150.012382,0.000259,14]
[380321846,1755673846670,-150.012382,0.000259,14]
[380321847,1755673846680,-150.012382,0.000259,14]
[380321848,1755673846690,-150.012382,0.000259,14]
[380321849,1755673846699,-151.0,0.000259,7]
[380321850,1755673846709,-151.0,0.000259,7]
[380321851,1755673846722,-151.0,0.000259,7]
[380321852,1755673846731,-740.17292381,0.000259,2]
[380321853,1755673846741,-151.0,0.000259,7]
[380321854,1755673846750,-151.0,0.000259,7]
[380321855,1755673846761,-238.038035,0.000259,7]
[380321856,1755673846770,-1000.0,0.000259,2]
[380321857,1755673846780,-151.0,0.000259,7]
[380321858,1755673846789,-217.204817,0.000259,7]
[380321859,1755673846799,-151.0,0.000259,7]
[380321860,1755673846809,-151.0,0.000259,7]
[380321861,1755673846818,-151.0,0.000259,7]
[380321862,1755673846827,-417.15472785,0.000259,7]
[380321863,1755673846837,-151.0,0.000259,7]
[380321864,1755673846846,-151.0,0.000259,7]
[380321865,1755673846855,-151.0,0.000259,7]
[380321866,1755673846872,-151.0,0.000259,7]
[380321867,1755673846882,-196.484017,0.000259,7]
[380321868,1755673846891,-151.0,0.000259,7]
[380321869,1755673846901,-275.31856,0.000259,7]
[380321870,1755673846911,-151.0,0.000259,7]
[380321871,1755673846925,-151.0,0.000259,7]
[380321872,1755673846943,-151.0,0.000259,7]
[380321873,1755673846953,-192.92528806,0.000259,7]
[380321874,1755673846962,-258.0,0.000259,7]
[380321875,1755673846972,-992.42,0.00025908,7]
[380321876,1755673846981,-150.012382,0.00025912,2]
[380321877,1755673846991,-7538.54883826,0.00025932,2]
[380321878,1755673847001,-1255.35,0.00025944,2]
[380321879,1755673847011,-1095.14874952,0.00025968,2]
[380321880,1755673847020,-250.26416489,0.00025973,2]
[380321881,1755673847030,-1134.20319839,0.00025984,2]
[380321882,1755673847039,-400.07306264,0.00025988,30]
[380321883,1755673847049,-33930.97934705,0.00026,7]
[380321884,1755673847058,-520.89622226,0.00026,2]
[380321885,1755673847068,-19900.0,0.00026,2]
[380321886,1755673847077,-6973.922072,0.00026,2]
[380321887,1755673847089,-5750.0,0.00026,2]
[380321892,1755674194052,398.0,0.00014,10]
[380321893,1755674429529,5000.0,0.000189,2]
[380321894,1755674444884,500.0,0.00018609,2]
[380321895,1755674446162,5000.0,0.000189,2]
[380321896,1755674449493,315.52223019,0.00018609,2]
[380321897,1755674462557,5000.0,0.000189,2]
[380321898,1755674478228,5000.0,0.000189,2]
[380321899,1755674493663,5000.0,0.000189,2]
[380321900,1755674509142,5000.0,0.000189,2]
[380321903,1755674524221,2992.08357796,0.000189,2]
[380321910,1755674589344,157.388264,0.00013699,2]
[380321917,1755674606611,3610.84184127,0.000189,2]
[380321918,1755674704796,3170.83824909,0.000189,2]
[380321931,1755674947867,150.0,0.000189,2]
[380321964,1755675032396,-472.84955145,0.000191,2]
[380321965,1755675032451,-117.74231269,0.000191,2]
[380321966,1755675032462,-500.0,0.00019123,2]
[380321967,1755675032471,-320.34768731,0.000199,2]
[380321968,1755675032483,-1247.55892558,0.000199,2]
[380321969,1755675032492,-181.464673,0.00020087,2]
[380321970,1755675032502,-156.52541143,0.00020094,2]
[380321972,1755675032514,-16.79093457,0.00020094,2]
[380321973,1755675032523,-500.0,0.0002013,2]
[380321974,1755675032532,-1567.90661288,0.00020258,2]
[380321976,1755675032542,-1567.90661288,0.00020616,2]
[380321979,1755675032551,-157.388264,0.00020951,2]
[380321982,1755675032560,-411.0,0.00020971,2]
[380321985,1755675032570,-1200.0,0.00020972,2]
[380321988,1755675032579,-300.0,0.00020972,2]
[380321990,1755675032588,-160.0,0.00020972,2]
[380321992,1755675032597,-300.0,0.00020972,2]
[380321994,1755675032606,-9104.08647738,0.00020973,2]
[380322132,1755675038521,-3760.57674878,0.00020973,2]
[380322134,1755675038531,-240.03954782,0.00020973,2]
[380322136,1755675038540,-500.72750371,0.00020973,2]
[380322138,1755675038550,-480.0,0.00020973,2]
[380322140,1755675038559,-480.0,0.00020973,2]
[380322142,1755675038568,-480.0,0.00020973,2]
[380322144,1755675038578,-1567.90661288,0.00020974,2]
[380322146,1755675038587,-446.12,0.00021189,2]
[380322148,1755675038596,-480.0,0.00021189,2]
[380322150,1755675038605,-480.0,0.00021189,2]
[380322152,1755675038614,-480.0,0.00021189,2]
[380322154,1755675038623,-480.0,0.00021189,2]
[380322156,1755675038632,-500.0,0.00021189,2]
[380322158,1755675038641,-391.42133079,0.00021231,2]
[380322160,1755675038651,-480.0,0.00021247,2]
[380322162,1755675038660,-480.0,0.00021247,2]
[380322164,1755675038669,-480.0,0.00021247,2]
[380322166,1755675038678,-480.0,0.00021331,2]
[380322168,1755675038687,-480.0,0.00021463,2]
[380322170,1755675038696,-480.0,0.00021463,2]
[380322172,1755675038705,-480.0,0.00021463,2]
[380322174,1755675038714,-480.0,0.00021521,2]
[380322176,1755675038723,-480.0,0.00021521,2]
[380322178,1755675038732,-480.0,0.00021521,2]
[380322180,1755675038742,-480.0,0.00021605,2]
[380322182,1755675038751,-480.0,0.00021689,2]
[380322184,1755675038761,-1567.90661288,0.00021689,2]
[380322186,1755675038770,-480.0,0.00021736,2]
[380322187,1755675038779,-480.0,0.00021736,2]
[380322189,1755675038789,-480.0,0.00021736,2]
[380322190,1755675038798,-480.0,0.00021795,2]
[380322191,1755675038807,-480.0,0.00021795,2]
[380322192,1755675038816,-480.0,0.00021795,2]
[380322193,1755675038825,-460.15,0.00021879,2]
[380322194,1755675038834,-5254.74669744,0.000219,2]
[380322195,1755675038843,-480.0,0.00021963,2]
[380322196,1755675038852,-480.0,0.0002201,2]
[380322197,1755675038861,-480.0,0.0002201,2]
[380322198,1755675038870,-391.42133075,0.00022055,2]
[380322199,1755675038880,-480.0,0.00022069,2]
[380322200,1755675038889,-480.0,0.00022069,2]
[380322201,1755675038898,-480.0,0.00022069,2]
[380322202,1755675038907,-237.6032039,0.00022236,2]
[380322203,1755675038916,-232.24568399,0.00022281,2]
[380322204,1755675038926,-844.05985274,0.00022281,2]
[380322205,1755675038935,-528.77847288,0.00022281,2]
[380322206,1755675038944,-160.0,0.00022281,2]
[380322207,1755675038952,-375.94359665,0.00022281,2]
[380322208,1755675038961,-160.0,0.00022281,2]
[380322209,1755675038971,-216.9170744,0.00022281,2]
[380322210,1755675038982,-480.0,0.00022284,2]
[380322211,1755675038991,-480.0,0.00022284,2]
[380322212,1755675039000,-160.0,0.00022288,2]
[380322213,1755675039009,-500.0,0.00022305,2]
[380322214,1755675039018,-480.0,0.00022343,2]
[380322215,1755675039028,-480.0,0.00022343,2]
[380322216,1755675039037,-480.0,0.00022343,2]
[380322217,1755675039047,-1567.90661288,0.00022405,2]
[380322218,1755675039057,-315.84694113,0.00022448,2]
[380322219,1755675039068,-1786.94882679,0.00022473,2]
[380322220,1755675039078,-2950.20549233,0.00022473,2]
[380322221,1755675039088,-1448.30894844,0.0002249,7]
[380322222,1755675039100,-2035.23,0.0002249,10]
[380322223,1755675039111,-1696.02,0.0002249,10]
[380322224,1755675039120,-471.19327836,0.00022499,2]
[380322225,1755675039131,-500.0,0.00022499,2]
[380322226,1755675039141,-166.73276325,0.00022499,2]
[380322227,1755675039150,-162.42877055,0.00022499,2]
[380322228,1755675039159,-520.47642118,0.00022499,2]
[380322229,1755675039170,-500.0,0.00022499,2]
[380322230,1755675039179,-500.0,0.00022499,2]
[380322231,1755675039188,-386.32594351,0.00022499,2]
[380322232,1755675039198,-500.0,0.00022499,2]
[380322233,1755675039207,-500.0,0.00022499,2]
[380322234,1755675039216,-500.0,0.00022499,2]
[380322235,1755675039225,-224.4632793,0.00022499,2]
[380322236,1755675039234,-624.37989826,0.00022499,2]
[380322237,1755675039243,-500.0,0.00022499,2]
[380322238,1755675039254,-356.6175009,0.00022499,2]
[380322239,1755675039263,-500.0,0.00022499,2]
[380322240,1755675039272,-500.0,0.00022499,2]
[380322241,1755675039281,-500.0,0.00022499,2]
[380322242,1755675039292,-23603.75531075,0.000225,3]
[380322243,1755675039301,-12687.94051737,0.000225,3]
[380322244,1755675039311,-160.0,0.000225,3]
[380322245,1755675039321,-528.77847288,0.000225,3]
[380322246,1755675039330,-215.82729805,0.000225,3]
[380322247,1755675039339,-480.0,0.00022558,2]
[380322248,1755675039348,-168.32,0.00022561,3]
[380322249,1755675039358,-505.0,0.00022561,3]
[380322250,1755675039367,-446.23269585,0.0002257,2]
[380322251,1755675039386,-808.92390333,0.0002257,2]
[380322252,1755675039407,-808.92390333,0.0002257,2]
[380322253,1755675039416,-808.92390333,0.0002257,2]
[380322254,1755675039425,-808.92390333,0.0002257,2]
[380322255,1755675039434,-808.92390333,0.0002257,2]
[380322256,1755675039444,-808.92390333,0.0002257,2]
[380322257,1755675039453,-808.92390333,0.0002257,2]
[380322258,1755675039462,-808.92390333,0.0002257,2]
[380322259,1755675039471,-808.92390333,0.0002257,2]
[380322260,1755675039480,-1076.95959208,0.0002257,2]
[380322261,1755675039489,-1076.95959208,0.0002257,2]
[380322262,1755675039498,-1076.95959208,0.0002257,2]
[380322263,1755675039507,-1076.95959208,0.0002257,2]
[380322264,1755675039516,-1076.95959208,0.0002257,2]
[380322265,1755675039525,-1076.95959208,0.0002257,2]
[380322266,1755675039535,-1076.95959208,0.0002257,2]
[380322267,1755675039545,-1076.95959208,0.0002257,2]
[380322268,1755675039554,-986.25528262,0.0002257,2]
[380322269,1755675039563,-986.25528262,0.0002257,2]
[380322270,1755675039572,-986.25528262,0.0002257,2]
[380322271,1755675039581,-986.25528262,0.0002257,2]
[380322272,1755675039590,-986.25528262,0.0002257,2]
[380322273,1755675039599,-986.25528262,0.0002257,2]
[380322274,1755675039608,-160.0,0.0002257,2]
[380322275,1755675039617,-370000.0,0.00022571,2]
[380322276,1755675039626,-501.30574279,0.00022573,2]
[380322277,1755675039635,-230.04968437,0.00022573,2]
[380322278,1755675039646,-500.83245679,0.00022573,2]
[380322279,1755675039655,-500.0,0.00022573,2]
[380322280,1755675039665,-501.65801935,0.00022573,2]
[380322281,1755675039675,-12687.94051737,0.000226,7]
[380322282,1755675039684,-4342.92,0.000226,7]
[380322283,1755675039693,-12185.86,0.000226,7]
[380322284,1755675039702,-1164.63,0.000226,7]
[380322285,1755675039711,-375.94359665,0.000226,7]
[380322286,1755675039720,-160.0,0.000226,7]
[380322287,1755675039730,-528.77847288,0.000226,7]
[380322288,1755675039738,-215.82729805,0.000226,7]
[380322289,1755675039748,-480.0,0.00022616,2]
[380322290,1755675039757,-480.0,0.00022616,2]
[380322291,1755675039766,-480.0,0.00022616,2]
[380322292,1755675039775,-700.0,0.00022712,2]
[380322293,1755675039784,-1567.90661288,0.00022763,2]
[380322294,1755675039794,-420.0,0.00022813,2]
[380322295,1755675039803,-1680.0,0.00022814,2]
[380322296,1755675039930,-480.0,0.00022832,2]
[380322297,1755675039941,-391.42133075,0.00022879,2]
[380322298,1755675039951,-480.0,0.0002289,2]
[380322299,1755675039961,-480.0,0.0002289,2]
[380322300,1755675039971,-480.0,0.0002289,2]
[380322301,1755675039981,-500.63181945,0.0002297,2]
[380322302,1755675039992,-1000.0040604,0.00023,2]
[380322303,1755675040001,-160.0,0.00023,2]
[380322304,1755675040011,-160.0,0.00023,3]
[380322305,1755675040022,-216.9170744,0.00023,3]
[380322306,1755675040031,-160.0,0.00023,3]
[380322307,1755675040041,-1786.94882678,0.00023055,2]
[380322308,1755675040051,-480.0,0.00023106,2]
[380322309,1755675040061,-260.0,0.00023118,2]
[380322310,1755675040071,-1000.0,0.00023121,2]
[380322311,1755675040080,-1567.90661288,0.00023121,2]
[380322312,1755675040094,-600.0,0.00023122,20]
[380322313,1755675040108,-480.0,0.00023164,2]
[380322315,1755675040117,-480.0,0.00023164,2]
[380322317,1755675040127,-480.0,0.00023164,2]
[380322318,1755675040139,-34239.79,0.000232,2]
[380322319,1755675040149,-1000.0,0.00023285,2]
[380322320,1755675040159,-1000.0,0.00023285,2]
[380322321,1755675040171,-17842.522448,0.00023285,2]
[380322322,1755675040181,-151.0,0.00023285,2]
[380322323,1755675040191,-1000.0,0.00023285,2]
[380322325,1755675040200,-926.0,0.00023285,2]
[380322326,1755675040210,-151.0,0.00023285,2]
[380322327,1755675040219,-2183.31810187,0.00023285,2]
[380322328,1755675040230,-151.0,0.00023285,2]
[380322329,1755675040239,-151.0,0.00023285,2]
[380322330,1755675040248,-151.0,0.00023285,2]
[380322331,1755675040258,-151.0,0.00023285,2]
[380322332,1755675040268,-289.02492048,0.00023285,2]
[380322333,1755675040278,-151.0,0.00023285,2]
[380322334,1755675040289,-296.73438774,0.00023285,2]
[380322335,1755675040299,-151.0,0.00023285,2]
[380322336,1755675040309,-375.90715752,0.0002334,2]
[380322337,1755675040319,-480.0,0.0002338,2]
[380322338,1755675040329,-500.0,0.0002342,2]
[380322339,1755675040340,-480.0,0.00023438,2]
[380322340,1755675040350,-480.0,0.00023438,2]
[380322341,1755675040362,-157.67583464,0.00023438,2]
[380322342,1755675040372,-1567.90661288,0.00023478,2]
[380322343,1755675040383,-1000.0,0.000235,2]
[380322344,1755675040393,-500.0,0.00023573,2]
[380322345,1755675040403,-500.37734669,0.00023573,2]
[380322346,1755675040414,-41643.57018416,0.000236,2]
[380322347,1755675040428,-38151.51129733,0.000236,2]
[380322348,1755675040442,-463.68597516,0.000236,2]
[380322349,1755675040454,-752.73625706,0.000236,2]
[380322350,1755675040466,-17660.49023358,0.000236,2]
[380322351,1755675040478,-404.39176818,0.000236,2]
[380322352,1755675040490,-3165.09645512,0.000236,2]
[380322353,1755675040530,-7924.85380597,0.000236,2]
[380322374,1755675046494,-1413.35,0.00023274,10]
[380322375,1755675046504,-81.77585548,0.000236,2]
[380322377,1755675225699,159.0,0.000191,2]
[380322382,1755675657300,157.487677,0.00013699,2]
[380322415,1755676041109,-825.10007675,0.00019701,2]
[380322416,1755676041133,-1836.1069113,0.000199,2]
[380322417,1755676041156,-1836.10691117,0.00020258,2]
[380322418,1755676041178,-1836.10691117,0.00020616,2]
[380322419,1755676041197,-172.16619,0.00020776,2]
[380322420,1755676041218,-300.0,0.00020798,2]
[380322421,1755676041238,-300.0,0.00020799,2]
[380322422,1755676041257,-1200.0,0.00020799,2]
[380322423,1755676041277,-5000.0,0.000208,3]
[380322424,1755676041420,-480.0,0.00021189,2]
[380322425,1755676041442,-480.0,0.00021189,2]
[380322426,1755676041465,-480.0,0.00021189,2]
[380322427,1755676041486,-480.0,0.00021189,2]
[380322428,1755676041508,-480.0,0.00021189,2]
[380322429,1755676041531,-480.0,0.00021189,2]
[380322430,1755676041552,-480.0,0.00021189,2]
[380322431,1755676041572,-1266.73819674,0.00021189,2]
[380322432,1755676041595,-480.0,0.00021331,2]
[380322433,1755676041616,-480.0,0.00021331,2]
[380322434,1755676041637,-480.0,0.00021331,2]
[380322435,1755676041666,-300.0,0.00021392,20]
[380322436,1755676041691,-300.0,0.00021392,20]
[380322437,1755676041712,-157.487677,0.00021404,2]
[380322438,1755676041732,-480.0,0.00021463,2]
[380322439,1755676041752,-480.0,0.00021463,2]
[380322440,1755676041776,-480.0,0.00021463,2]
[380322441,1755676041796,-480.0,0.00021463,2]
[380322442,1755676041817,-480.0,0.00021463,2]
[380322443,1755676041838,-480.0,0.00021463,2]
[380322444,1755676041859,-480.0,0.00021463,2]
[380322445,1755676041879,-150.0,0.000215,2]
[380322446,1755676041901,-480.0,0.00021605,2]
[380322447,1755676041922,-480.0,0.00021605,2]
[380322448,1755676041944,-480.0,0.00021605,2]
[380322449,1755676041969,-300.0,0.00021612,20]
[380322450,1755676041995,-300.0,0.00021612,20]
[380322451,1755676042015,-480.0,0.00021736,2]
[380322452,1755676042035,-480.0,0.00021736,2]
[380322453,1755676042058,-480.0,0.00021736,2]
[380322454,1755676042079,-480.0,0.00021736,2]
[380322455,1755676042102,-480.0,0.00021736,2]
[380322456,1755676042124,-480.0,0.00021879,2]
[380322457,1755676042145,-480.0,0.00021879,2]
[380322458,1755676042166,-179.0,0.00022,2]
[380322459,1755676042185,-167.0,0.00022,2]
[380322460,1755676042206,-480.0,0.0002201,2]
[380322461,1755676042229,-480.0,0.0002201,2]
[380322462,1755676042251,-157.67583464,0.0002201,2]
[380322463,1755676042274,-480.0,0.0002201,2]
[380322464,1755676042293,-506.49646671,0.0002201,2]
[380322465,1755676042316,-1836.10691117,0.00022047,2]
[380322466,1755676042340,-167.0,0.00022192,7]
[380322467,1755676042360,-160.0,0.00022279,2]
[380322468,1755676042381,-480.0,0.00022284,2]
[380322469,1755676042405,-480.0,0.00022284,2]
[380322470,1755676042428,-480.0,0.00022284,2]
[380322471,1755676042448,-2151.75625131,0.000223,2]
[380322472,1755676042468,-1966.80366154,0.000223,2]
[380322473,1755676042487,-500.63181945,0.00022373,2]
[380322474,1755676042508,-501.65801935,0.00022373,2]
[380322475,1755676042530,-1552.53,0.0002239,10]
[380322476,1755676042550,-187.37,0.0002239,3]
[380322477,1755676042571,-1293.78,0.0002239,10]
[380322478,1755676042591,-180.48665536,0.00022399,2]
[380322479,1755676042612,-176.69580656,0.00022399,2]
[380322480,1755676042634,-500.0,0.00022399,2]
[380322481,1755676042655,-535.55659148,0.00022399,2]
[380322482,1755676042675,-503.60547103,0.00022399,2]
[380322483,1755676042696,-945.23605136,0.00022399,2]
[380322484,1755676042716,-945.23605136,0.00022399,2]
[380322485,1755676042737,-945.23605136,0.00022399,2]
[380322486,1755676042757,-945.23605136,0.00022399,2]
[380322487,1755676042779,-945.23605136,0.00022399,2]
[380322488,1755676042799,-945.23605136,0.00022399,2]
[380322489,1755676042819,-945.23605136,0.00022399,2]
[380322490,1755676042840,-945.23605136,0.00022399,2]
[380322491,1755676042861,-945.23605136,0.00022399,2]
[380322492,1755676042883,-945.23605136,0.00022399,2]
[380322493,1755676042903,-945.23605136,0.00022399,2]
[380322494,1755676042924,-945.23605136,0.00022399,2]
[380322495,1755676042944,-964.14077238,0.00022399,2]
[380322496,1755676042964,-964.14077238,0.00022399,2]
[380322497,1755676042985,-964.14077238,0.00022399,2]
[380322498,1755676043005,-964.14077238,0.00022399,2]
[380322499,1755676043027,-964.14077238,0.00022399,2]
[380322500,1755676043048,-964.14077238,0.00022399,2]
[380322501,1755676043068,-964.14077238,0.00022399,2]
[380322502,1755676043089,-964.14077238,0.00022399,2]
[380322503,1755676043110,-967.35457495,0.00022399,2]
[380322504,1755676043131,-967.35457495,0.00022399,2]
[380322505,1755676043152,-967.35457495,0.00022399,2]
[380322506,1755676043173,-967.35457495,0.00022399,2]
[380322507,1755676043194,-967.35457495,0.00022399,2]
[380322508,1755676043215,-63276.76235727,0.000224,2]
[380322523,1755676232592,-900.1571553,0.000199,2]
[380322525,1755676232604,-691.13550126,0.000199,2]
[380322527,1755676232613,-1591.29265634,0.00020258,2]
[380322529,1755676232622,-1591.29265634,0.00020616,2]
[380322531,1755676232631,-480.0,0.00021331,2]
[380322533,1755676232641,-480.0,0.00021331,2]
[380322535,1755676232651,-480.0,0.00021331,2]
[380322537,1755676232660,-1591.29265634,0.00021331,2]
[380322539,1755676232670,-1301.25350072,0.00021505,2]
[380322541,1755676232679,-300.0,0.00021604,2]
[380322542,1755676232688,-480.0,0.00021605,2]
[380322543,1755676232698,-480.0,0.00021605,2]
[380322544,1755676232709,-480.0,0.00021605,2]
[380322545,1755676232728,-1591.29265634,0.00021689,2]
[380322546,1755676232737,-480.0,0.00021879,2]
[380322547,1755676232747,-199.29253176,0.00021879,2]
[380322548,1755676232756,-480.0,0.00021879,2]
[380322549,1755676232765,-168.0,0.00022,2]
[380322550,1755676232774,-90.84944745,0.00022047,2]
[380322575,1755676238562,-1500.44320889,0.00022047,2]
[380322576,1755676238572,-576.43942815,0.00022153,2]
[380322577,1755676238580,-480.0,0.00022153,2]
[380322578,1755676238589,-168.0,0.00022192,7]
[380322579,1755676238599,-160.0,0.00022279,2]
[380322580,1755676238608,-160.0,0.00022279,2]
[380322581,1755676238617,-1721.40500108,0.000223,2]
[380322582,1755676238626,-397.60828619,0.000223,2]
[380322583,1755676238637,-913.59415485,0.000223,2]
[380322584,1755676238645,-562.16,0.0002239,3]
[380322585,1755676238654,-1078.15,0.0002239,10]
[380322586,1755676238663,-898.45,0.0002239,10]
[380322587,1755676238673,-748.71,0.0002239,10]
[380322588,1755676238682,-5042.16585182,0.000224,2]
[380322589,1755676239437,-75762.77235868,0.000224,2]
[380322590,1755676239448,-846.09416604,0.000224,2]
[380322591,1755676239460,-2710.07831813,0.000224,2]
[380322592,1755676239471,-38151.51129733,0.000224,2]
[380322611,1755676246712,-196.06,0.0002239,3]
[380322612,1755676246722,-14178.44657762,0.000224,2]
[380322613,1755676246803,-170032.16907311,0.000224,2]
[380322614,1755676246813,-12687.94051737,0.000224,7]
[380322615,1755676246823,-1310.21,0.000224,7]
[380322616,1755676246832,-13926.7,0.000224,7]
[380322617,1755676246842,-4885.79,0.000224,7]
[380322618,1755676246851,-375.94359665,0.000224,7]
[380322619,1755676246861,-160.0,0.000224,7]
[380322620,1755676246870,-528.77847288,0.000224,7]
[380322621,1755676246879,-417.15472785,0.000224,7]
[380322622,1755676246889,-1591.29265634,0.00022405,2]
[380322623,1755676246898,-480.0,0.00022427,2]
[380322624,1755676246907,-3021.69,0.00022498,3]
[380322625,1755676246918,-1000.0,0.00022568,2]
[380322626,1755676246927,-1000.0,0.00022568,2]
[380322627,1755676246936,-1000.0,0.00022568,2]
[380322628,1755676246945,-1000.0,0.00022568,2]
[380322629,1755676246955,-1000.0,0.00022568,2]
[380322630,1755676246965,-160.0,0.00022568,2]
[380322631,1755676246975,-160.0,0.00022568,2]
[380322632,1755676246983,-160.0,0.00022568,2]
[380322633,1755676246993,-160.0,0.00022568,2]
[380322634,1755676247002,-216.9170744,0.00022568,2]
[380322635,1755676247011,-160.0,0.00022568,2]
[380322636,1755676247020,-215.82729805,0.00022568,2]
[380322637,1755676247030,-160.0,0.00022569,2]
[380322638,1755676247039,-375.94359665,0.00022569,2]
[380322639,1755676247048,-232.24568399,0.00022569,2]
[380322640,1755676247057,-528.77847288,0.00022569,2]
[380322641,1755676247066,-844.05985274,0.00022569,2]
[380322642,1755676247075,-417.15472785,0.00022569,2]
[380322643,1755676247084,-1000.0,0.00022569,2]
[380322644,1755676247093,-1000.0,0.0002257,2]
[380322645,1755676247102,-1000.0,0.0002257,2]
[380322646,1755676247111,-254.41878042,0.0002257,2]
[380322647,1755676247120,-594.0,0.00022629,2]
[380322648,1755676247130,-6000.0,0.00022682,3]
[380322649,1755676247139,-352.52382972,0.000227,2]
[380322650,1755676247148,-706.30873466,0.000227,2]
[380322651,1755676247157,-706.30873466,0.000227,2]
[380322652,1755676247166,-706.30873466,0.000227,2]
[380322653,1755676247175,-706.30873466,0.000227,2]
[380322654,1755676247185,-706.30873466,0.000227,2]
[380322655,1755676247195,-706.30873466,0.000227,2]
[380322656,1755676247206,-706.30873466,0.000227,2]
[380322657,1755676247215,-706.30873466,0.000227,2]
[380322658,1755676247224,-706.30873466,0.000227,2]
[380322659,1755676247234,-706.30873466,0.000227,2]
[380322660,1755676247243,-706.30873466,0.000227,2]
[380322661,1755676247253,-480.0,0.00022701,2]
[380322662,1755676247263,-900.0,0.00022712,2]
[380322663,1755676247273,-4000.0,0.00022896,4]
[380322664,1755676247282,-1721.40500104,0.00022925,2]
[380322665,1755676247291,-480.0,0.00022975,2]
[380322666,1755676247300,-168.0,0.00023,7]
[380322667,1755676247309,-160.0,0.00023,2]
[380322668,1755676247318,-168.0,0.00023014,7]
[380322669,1755676247327,-1591.29265634,0.00023121,2]
[380322670,1755676247337,-480.0,0.00023249,2]
[380322671,1755676247346,-160.0,0.00023273,2]
[380322672,1755676247356,-151.0,0.00023285,2]
[380322673,1755676247365,-151.0,0.00023285,2]
[380322674,1755676247374,-151.0,0.00023285,2]
[380322675,1755676247384,-1000.0,0.00023285,2]
[380322676,1755676247393,-151.0,0.00023285,2]
[380322677,1755676247402,-151.0,0.00023285,2]
[380322678,1755676247419,-1000.0,0.00023285,2]
[380322679,1755676247428,-296.64462322,0.00023285,2]
[380322680,1755676247438,-289.02492048,0.00023285,2]
[380322681,1755676247447,-1000.0,0.00023285,2]
[380322682,1755676247457,-926.0,0.00023285,2]
[380322683,1755676247467,-17842.522448,0.00023285,2]
[380322684,1755676247477,-2183.31810187,0.00023285,2]
[380322685,1755676247487,-151.0,0.00023285,2]
[380322686,1755676247496,-151.0,0.00023285,2]
[380322687,1755676247506,-151.0,0.00023285,2]
[380322688,1755676247516,-151.0,0.00023285,2]
[380322689,1755676247525,-179.00641889,0.00023285,2]
[380322690,1755676247535,-375.90715752,0.0002334,2]
[380322691,1755676247544,-1591.29265634,0.00023478,2]
[380322692,1755676247554,-420.0,0.00023486,2]
[380322693,1755676247563,-159.0,0.000235,4]
[380322694,1755676247573,-496.12,0.00023523,2]
[380322695,1755676247582,-1721.40500104,0.0002355,2]
[380322696,1755676247592,-1311.20244102,0.0002355,2]
[380322697,1755676247601,-500.0,0.00023573,2]
[380322698,1755676247611,-501.30574279,0.00023573,2]
[380322699,1755676247621,-230.04968437,0.00023573,2]
[380322700,1755676247631,-500.83245679,0.00023573,2]
[380322701,1755676247643,-501.1754658,0.00023573,2]
[380322702,1755676247652,-500.0,0.00023573,2]
[380322703,1755676247661,-500.0,0.00023573,2]
[380322704,1755676247671,-500.37734669,0.00023573,2]